fUSD/lending_fUSD_20240105
["ID","MTS","AMOUNT","RATE_DAILY","PERIOD"]
[310296956,1704463954630,-7439.39,0.00032876,2]
[310296957,1704463954642,-737.13,0.00032876,2]
[310296958,1704463954652,-973.07,0.00032876,2]
[310296959,1704463954662,-563.27,0.00032876,2]
[310296960,1704463954671,-585.98,0.00032876,2]
[310296961,1704463954680,-500.0,0.00032876,2]
[310296962,1704463954690,-878.72,0.00032876,2]
[310296963,1704463954700,-500.0,0.00032876,2]
[310296964,1704463954710,-1022.6,0.00032876,2]
[310296965,1704463954720,-500.0,0.00032876,2]
[310296966,1704463954730,-1959.09,0.00032876,2]
[310296967,1704463954739,-732.57,0.00032876,2]
[310296968,1704463954749,-11053.17,0.00032876,2]
[310296969,1704463954758,-757.66,0.00032876,2]
[310296970,1704463954768,-500.0,0.00032876,2]
[310296971,1704463954777,-511.54,0.00032876,2]
[310296972,1704463954786,-1241.64,0.00032876,2]
[310296973,1704463954795,-3419.36,0.00032876,2]
[310296974,1704463954804,-1092.45,0.00032876,2]
[310296975,1704463954813,-2084.07,0.00032876,2]
[310296976,1704463954822,-558.28,0.00032876,2]
[310296977,1704463954833,-500.0,0.00032876,2]
[310296978,1704463954842,-1946.6,0.00032876,2]
[310296979,1704463954852,-500.0,0.00032876,2]
[310296980,1704463954861,-500.0,0.00032876,2]
[310296981,1704463954871,-1013.42,0.00032876,2]
[310296982,1704463954881,-500.0,0.00032876,2]
[310296983,1704463954890,-500.0,0.00032876,2]
[310296984,1704463954900,-1212.22,0.00032876,2]
[310296985,1704463954910,-2289.25,0.00032876,2]
[310296986,1704463954919,-2289.25,0.00032876,2]
[310296987,1704463954928,-2289.25,0.00032876,2]
[310296988,1704463954938,-2289.25,0.00032876,2]
[310296989,1704463954948,-2289.25,0.00032876,2]
[310296990,1704463954956,-2289.25,0.00032876,2]
[310296991,1704463954966,-2289.25,0.00032876,2]
[310296992,1704463954975,-2289.25,0.00032876,2]
[310296993,1704463954984,-2289.25,0.00032876,2]
[310296994,1704463954993,-2289.25,0.00032876,2]
[310296995,1704463955002,-2289.25,0.00032876,2]
[310296996,1704463955011,-2361.2,0.00032876,2]
[310296997,1704463955020,-500.0,0.00032876,2]
[310296998,1704463955030,-500.0,0.00032876,2]
[310296999,1704463955040,-1128.19,0.00032876,2]
[310297000,1704463955051,-702.4,0.00032876,2]
[310297001,1704463955062,-764.39,0.00032876,2]
[310297002,1704463955071,-500.0,0.00032876,2]
[310297003,1704463955085,-517.07,0.00032876,2]
[310297004,1704463955094,-1542.41,0.00032876,2]
[310297005,1704463955104,-1440.35,0.00032876,2]
[310297006,1704463955114,-500.0,0.00032876,2]
[310297007,1704463955124,-500.0,0.00032876,2]
[310297008,1704463955134,-715.0,0.00032876,2]
[310297009,1704463955145,-500.0,0.00032876,2]
[310297010,1704463955155,-2358.36,0.00032876,2]
[310297011,1704463955165,-1017.07,0.00032876,2]
[310297012,1704463955175,-500.0,0.00032876,2]
[310297013,1704463955184,-5040.24,0.00032876,2]
[310297014,1704463955194,-1054.48,0.00032876,2]
[310297015,1704463955203,-500.0,0.00032876,2]
[310297016,1704463955212,-500.0,0.00032876,2]
[310297017,1704463955223,-386.63633029,0.00032876,2]
[310297018,1704463955232,-915.19,0.00032876,2]
[310297019,1704463955241,-8316.18,0.00032876,2]
[310297020,1704463955251,-1182.97,0.00032876,2]
[310297021,1704463955261,-5436.81,0.00032876,2]
[310297022,1704463955271,-500.0,0.00032876,2]
[310297023,1704463955281,-826.79,0.00032876,2]
[310297024,1704463955290,-709.6,0.00032876,2]
[310297025,1704463955300,-153.84,0.00032877,2]
[310297026,1704463955309,-36911.25,0.00032877,2]
[310297027,1704463955319,-423.7,0.00032877,15]
[310297028,1704463955329,-9725.6,0.00032877,2]
[310297029,1704463955340,-51844.62,0.00032877,2]
[310297030,1704463955349,-500.0,0.00032877,2]
[310297031,1704463955359,-4459.0,0.00032877,5]
[310297032,1704463955369,-35000.0,0.000329,3]
[310297033,1704463955378,-1000.0,0.000329,2]
[310297034,1704463955387,-5236.2671396,0.000329,2]
[310297035,1704463955397,-4031.0,0.000329,2]
[310297036,1704463955406,-1282.96181558,0.00032998,2]
[310297037,1704463955416,-100000.0,0.00033,3]
[310297038,1704463955425,-1021.06342538,0.00033,2]
[310297039,1704463955435,-236.82617488,0.00033,4]
[310297040,1704463955445,-1111.22886388,0.00033,2]
[310297041,1704463955455,-2000.0,0.00033,5]
[310297042,1704463955464,-1500.0,0.00033,3]
[310297043,1704463955474,-5034.5018511,0.00033,5]
[310297044,1704463955484,-5310.6964241,0.00033,2]
[310297045,1704463955493,-98695.28527393,0.00033,2]
[310297046,1704463955503,-3000.0,0.00033,2]
[310297047,1704463955513,-300.0,0.00033,6]
[310297048,1704463955522,-1000.0,0.00033,2]
[310297049,1704463955531,-173.17,0.00033069,2]
[310297050,1704463955541,-500.0,0.00033069,3]
[310297051,1704463955550,-1444.79,0.00033069,3]
[310297052,1704463955560,-947.41,0.00033069,3]
[310297053,1704463955570,-2917.19,0.00033069,3]
[310297054,1704463955582,-1039.42,0.00033069,3]
[310297055,1704463955593,-500.0,0.00033069,3]
[310297056,1704463955603,-588.09,0.00033069,3]
[310297057,1704463955614,-533.61365549,0.00033069,3]
[310297058,1704463955624,-984.84,0.00033069,3]
[310297059,1704463955636,-1577.2,0.00033069,3]
[310297060,1704463955646,-1004.25,0.00033069,3]
[310297061,1704463955656,-500.0,0.00033069,3]
[310297062,1704463955667,-500.0,0.00033069,3]
[310297063,1704463955677,-941.19,0.00033069,3]
[310297064,1704463955686,-500.0,0.00033069,3]
[310297065,1704463955696,-500.0,0.00033069,3]
[310297066,1704463955706,-587.5,0.00033069,3]
[310297067,1704463955716,-684.69,0.00033069,3]
[310297068,1704463955725,-500.0,0.00033069,3]
[310297069,1704463955735,-500.0,0.00033069,3]
[310297070,1704463955745,-502.66,0.00033069,3]
[310297071,1704463955754,-1249.93,0.00033069,3]
[310297072,1704463955764,-700.39,0.00033069,3]
[310297073,1704463955774,-960.04,0.00033069,3]
[310297074,1704463955784,-500.0,0.00033069,3]
[310297075,1704463955793,-537.41,0.00033069,3]
[310297076,1704463955803,-667.92,0.00033069,3]
[310297077,1704463955812,-510.05,0.00033069,3]
[310297078,1704463955821,-978.16,0.00033069,3]
[310297079,1704463955831,-500.0,0.00033069,3]
[310297080,1704463955840,-945.97,0.00033069,3]
[310297081,1704463955850,-1019.98,0.00033069,3]
[310297082,1704463955859,-500.0,0.00033069,3]
[310297083,1704463955869,-803.57,0.00033069,3]
[310297084,1704463955878,-889.76,0.00033069,3]
[310297085,1704463955888,-610.92,0.00033069,3]
[310297086,1704463955897,-605.09,0.00033069,3]
[310297087,1704463955907,-500.0,0.00033069,3]
[310297088,1704463955918,-571.57,0.00033069,3]
[310297089,1704463955927,-500.0,0.00033069,3]
[310297090,1704463955937,-500.0,0.00033069,3]
[310297091,1704463955946,-500.0,0.00033069,3]
[310297092,1704463955956,-458.71872655,0.00033069,3]
[310297093,1704463955966,-500.0,0.00033069,3]
[310297094,1704463955975,-500.0,0.00033103,2]
[310297095,1704463955985,-500.0,0.0003315,3]
[310297096,1704463955994,-500.0,0.0003315,3]
[310297097,1704463956003,-578.99,0.0003315,3]
[310297098,1704463956012,-570.77,0.0003315,3]
[310297099,1704463956025,-500.0,0.0003315,3]
[310297100,1704463956034,-500.0,0.0003315,3]
[310297101,1704463956044,-500.0,0.0003315,3]
[310297102,1704463956054,-500.0,0.0003315,3]
[310297103,1704463956063,-500.0,0.0003315,3]
[310297104,1704463956074,-964.18,0.0003315,3]
[310297105,1704463956084,-500.0,0.0003315,3]
[310297106,1704463956094,-500.0,0.0003315,3]
[310297107,1704463956103,-500.0,0.0003315,3]
[310297108,1704463956113,-239.94417813,0.0003315,3]
[310297109,1704463956122,-500.0,0.0003315,3]
[310297110,1704463956131,-500.0,0.0003315,3]
[310297111,1704463956140,-500.0,0.0003315,3]
[310297112,1704463956150,-500.0,0.0003315,3]
[310297113,1704463956160,-412.140744,0.0003315,3]
[310297114,1704463956169,-500.0,0.0003315,3]
[310297115,1704463956178,-500.0,0.0003315,3]
[310297116,1704463956187,-334.62882054,0.0003315,3]
[310297117,1704463956196,-500.0,0.0003315,3]
[310297118,1704463956205,-500.0,0.0003315,3]
[310297119,1704463956215,-350.12191506,0.0003315,3]
[310297120,1704463956224,-776.92,0.0003315,3]
[310297121,1704463956234,-500.0,0.0003315,3]
[310297122,1704463956243,-500.0,0.0003315,3]
[310297123,1704463956252,-500.0,0.0003315,3]
[310297124,1704463956262,-500.0,0.0003315,3]
[310297125,1704463956272,-500.0,0.0003315,3]
[310297126,1704463956282,-754.78,0.0003315,3]
[310297127,1704463956291,-608.57,0.0003315,3]
[310297128,1704463956300,-500.0,0.0003315,3]
[310297129,1704463956310,-500.0,0.0003315,3]
[310297130,1704463956319,-500.0,0.0003315,3]
[310297131,1704463956329,-500.0,0.0003315,3]
[310297132,1704463956339,-574.49,0.0003315,2]
[310297133,1704463956348,-500.0,0.0003315,3]
[310297134,1704463956358,-324.26451889,0.0003315,3]
[310297135,1704463956368,-500.0,0.0003315,3]
[310297136,1704463956378,-597.18,0.0003315,3]
[310297137,1704463956388,-500.0,0.0003315,3]
[310297138,1704463956397,-535.87,0.0003315,3]
[310297139,1704463956407,-500.0,0.0003315,3]
[310297140,1704463956416,-500.0,0.0003315,3]
[310297141,1704463956426,-500.0,0.0003315,3]
[310297142,1704463956435,-171.60017661,0.0003315,3]
[310297143,1704463956445,-583.85067593,0.0003315,3]
[310297144,1704463956454,-847.71,0.0003315,3]
[310297145,1704463956464,-500.0,0.0003315,2]
[310297146,1704463956474,-171.92581804,0.0003315,3]
[310297147,1704463956484,-500.0,0.0003315,3]
[310297148,1704463956494,-500.0,0.0003315,3]
[310297149,1704463956504,-939.06,0.0003315,3]
[310297150,1704463956514,-417.01,0.0003315,3]
[310297151,1704463956524,-500.0,0.0003315,3]
[310297152,1704463956533,-500.0,0.0003315,3]
[310297153,1704463956543,-500.0,0.0003315,3]
[310297154,1704463956552,-500.0,0.0003315,3]
[310297155,1704463956562,-617.42,0.0003315,3]
[310297156,1704463956572,-500.0,0.0003315,3]
[310297157,1704463956583,-152.23558102,0.0003315,3]
[310297158,1704463956592,-763.35,0.0003315,3]
[310297159,1704463956602,-500.0,0.0003315,3]
[310297160,1704463956612,-581.06,0.0003315,3]
[310297161,1704463956623,-533.25,0.0003315,3]
[310297162,1704463956636,-1032.57,0.0003315,3]
[310297163,1704463956646,-500.0,0.0003315,3]
[310297164,1704463956656,-668.81,0.0003315,3]
[310297165,1704463956668,-897.42,0.0003315,3]
[310297166,1704463956678,-394.2153474,0.0003315,3]
[310297167,1704463956688,-308.58372385,0.0003315,3]
[310297168,1704463956698,-610.9,0.0003315,3]
[310297169,1704463956708,-542.23,0.0003315,3]
[310297170,1704463956715,-500.0,0.0003315,3]
[310297171,1704463956725,-500.0,0.0003315,3]
[310297172,1704463956735,-977.28,0.0003315,3]
[310297173,1704463956746,-403.01681414,0.0003315,3]
[310297174,1704463956757,-500.0,0.0003315,3]
[310297175,1704463956767,-564.72,0.0003315,3]
[310297176,1704463956777,-623.13,0.0003315,3]
[310297177,1704463956787,-500.0,0.0003315,3]
[310297178,1704463956797,-660.13,0.0003315,3]
[310297179,1704463956806,-1107.9,0.0003315,3]
[310297180,1704463956816,-500.0,0.0003315,3]
[310297181,1704463956827,-500.0,0.0003315,3]
[310297182,1704463956839,-500.0,0.0003315,3]
[310297183,1704463956849,-500.0,0.0003315,3]
[310297184,1704463956858,-534.02,0.0003315,3]
[310297185,1704463956868,-500.0,0.0003315,3]
[310297186,1704463956878,-1001.59,0.0003315,3]
[310297187,1704463956889,-500.0,0.0003315,3]
[310297188,1704463956898,-500.0,0.0003315,3]
[310297189,1704463956909,-272.75521209,0.0003315,3]
[310297190,1704463956919,-500.0,0.0003315,3]
[310297191,1704463956929,-500.0,0.0003315,3]
[310297192,1704463956939,-577.73,0.0003315,3]
[310297193,1704463956950,-500.0,0.0003315,3]
[310297194,1704463956959,-515.35,0.0003315,3]
[310297195,1704463956969,-500.0,0.0003315,3]
[310297196,1704463956979,-528.01,0.0003315,3]
[310297197,1704463956989,-500.0,0.0003315,3]
[310297198,1704463956999,-609.91,0.0003315,3]
[310297199,1704463957008,-3164.14,0.0003315,3]
[310297200,1704463957018,-500.0,0.0003315,3]
[310297201,1704463957028,-767.51,0.0003315,3]
[310297202,1704463957037,-234.56680102,0.0003315,3]
[310297203,1704463957047,-500.0,0.0003315,3]
[310297204,1704463957058,-572.23,0.0003315,3]
[310297205,1704463957068,-500.0,0.0003315,3]
[310297206,1704463957078,-1043.05,0.0003315,3]
[310297207,1704463957089,-663.96,0.0003315,3]
[310297208,1704463957098,-500.0,0.0003315,3]
[310297209,1704463957109,-969.42,0.0003315,3]
[310297210,1704463957118,-500.0,0.0003315,3]
[310297211,1704463957129,-500.0,0.0003315,3]
[310297212,1704463957139,-951.95,0.0003315,3]
[310297213,1704463957149,-550.89826013,0.0003315,3]
[310297214,1704463957158,-530.7020881,0.0003315,3]
[310297215,1704463957168,-500.0,0.0003315,3]
[310297216,1704463957178,-500.0,0.0003315,3]
[310297217,1704463957188,-585.0,0.0003315,3]
[310297218,1704463957198,-795.33,0.0003315,3]
[310297219,1704463957207,-500.0,0.0003315,3]
[310297220,1704463957217,-500.0,0.0003315,3]
[310297221,1704463957227,-150.20130278,0.0003315,3]
[310297222,1704463957237,-188.50098239,0.0003315,3]
[310297223,1704463957246,-535.25,0.0003315,3]
[310297224,1704463957257,-573.11,0.0003315,3]
[310297225,1704463957267,-1278.92,0.0003315,3]
[310297226,1704463957277,-1115.46,0.0003315,3]
[310297227,1704463957286,-500.0,0.0003315,3]
[310297228,1704463957297,-522.9,0.0003315,3]
[310297229,1704463957307,-503.15,0.0003315,3]
[310297230,1704463957318,-500.0,0.0003315,3]
[310297231,1704463957327,-500.0,0.0003315,3]
[310297232,1704463957339,-500.0,0.0003315,3]
[310297233,1704463957348,-898.64,0.0003315,3]
[310297234,1704463957358,-500.0,0.0003315,3]
[310297235,1704463957368,-500.0,0.0003315,3]
[310297236,1704463957378,-2197.46,0.0003315,3]
[310297237,1704463957388,-1050.63,0.0003315,3]
[310297238,1704463957399,-500.0,0.0003315,2]
[310297239,1704463957409,-512.25,0.0003315,3]
[310297240,1704463957419,-500.0,0.0003315,3]
[310297241,1704463957430,-652.42,0.0003315,3]
[310297242,1704463957439,-500.96,0.0003315,3]
[310297243,1704463957449,-500.0,0.0003315,3]
[310297244,1704463957459,-500.0,0.0003315,3]
[310297245,1704463957470,-737.52,0.0003315,3]
[310297246,1704463957480,-500.0,0.0003315,3]
[310297247,1704463957491,-500.0,0.0003315,3]
[310297248,1704463957501,-500.0,0.0003315,3]
[310297249,1704463957512,-1408.67,0.0003315,3]
[310297250,1704463957521,-500.0,0.0003315,3]
[310297251,1704463957532,-519.09,0.0003315,3]
[310297252,1704463957542,-500.0,0.0003315,3]
[310297253,1704463957551,-500.0,0.0003315,3]
[310297254,1704463957563,-500.0,0.0003315,3]
[310297255,1704463957573,-500.0,0.0003315,3]
[310297256,1704463957583,-500.0,0.0003315,3]
[310297257,1704463957596,-1017.17,0.0003315,3]
[310297258,1704463957606,-500.0,0.0003315,3]
[310297259,1704463957615,-500.0,0.0003315,3]
[310297260,1704463957625,-1228.15,0.0003315,3]
[310297261,1704463957635,-1193.22,0.0003315,3]
[310297262,1704463957645,-500.0,0.0003315,3]
[310297263,1704463957657,-500.0,0.0003315,3]
[310297264,1704463957666,-1709.82,0.0003315,3]
[310297265,1704463957675,-500.0,0.0003315,3]
[310297266,1704463957685,-500.0,0.0003315,3]
[310297267,1704463957695,-500.0,0.0003315,3]
[310297268,1704463957706,-221.95753464,0.0003315,3]
[310297269,1704463957715,-521.26,0.0003315,3]
[310297270,1704463957725,-500.0,0.0003315,3]
[310297271,1704463957735,-1009.32,0.0003315,3]
[310297272,1704463957745,-769.11,0.0003315,3]
[310297273,1704463957755,-500.0,0.0003315,3]
[310297274,1704463957765,-952.84,0.0003315,3]
[310297275,1704463957774,-634.11,0.0003315,3]
[310297276,1704463957785,-500.0,0.0003315,3]
[310297277,1704463957794,-1188.9,0.0003315,3]
[310297278,1704463957804,-500.0,0.0003315,3]
[310297279,1704463957813,-558.13,0.0003315,3]
[310297280,1704463957823,-773.34,0.0003315,3]
[310297281,1704463957834,-500.0,0.0003315,3]
[310297282,1704463957844,-206.27412314,0.0003315,3]
[310297283,1704463957854,-209.08548416,0.0003315,3]
[310297284,1704463957864,-881.16,0.0003315,3]
[310297285,1704463957874,-594.3841026,0.0003315,3]
[310297286,1704463957883,-500.0,0.0003315,3]
[310297287,1704463957893,-1431.77,0.0003315,3]
[310297288,1704463957903,-305.24921654,0.0003315,3]
[310297289,1704463957913,-798.14,0.0003315,3]
[310297290,1704463957922,-500.0,0.0003315,3]
[310297291,1704463957932,-2061.68,0.0003315,3]
[310297292,1704463957941,-500.0,0.0003315,3]
[310297293,1704463957951,-909.7,0.0003315,3]
[310297294,1704463957961,-500.0,0.0003315,3]
[310297295,1704463957970,-500.0,0.0003315,3]
[310297296,1704463957980,-1481.56,0.0003315,3]
[310297297,1704463957989,-500.0,0.0003315,3]
[310297298,1704463957999,-500.0,0.0003315,3]
[310297299,1704463958010,-1575.41,0.0003315,3]
[310297300,1704463958020,-500.39,0.0003315,3]
[310297301,1704463958030,-982.39,0.0003315,3]
[310297302,1704463958040,-500.0,0.0003315,3]
[310297303,1704463958049,-500.0,0.0003315,3]
[310297304,1704463958059,-616.4,0.0003315,3]
[310297305,1704463958069,-656.28,0.0003315,3]
[310297306,1704463958080,-615.45,0.0003315,3]
[310297307,1704463958090,-815.67,0.0003315,3]
[310297308,1704463958099,-855.97,0.0003315,3]
[310297309,1704463958108,-314.59666279,0.0003315,3]
[310297310,1704463958118,-914.92,0.0003315,3]
[310297311,1704463958127,-492.11104517,0.0003315,3]
[310297312,1704463958137,-759.49,0.0003315,3]
[310297313,1704463958148,-612.52,0.0003315,3]
[310297314,1704463958158,-500.0,0.0003315,3]
[310297315,1704463958168,-638.72,0.0003315,3]
[310297316,1704463958178,-500.0,0.0003315,3]
[310297317,1704463958188,-317.79098863,0.0003315,3]
[310297318,1704463958198,-500.0,0.0003315,3]
[310297319,1704463958208,-779.76,0.0003315,3]
[310297320,1704463958218,-1184.83,0.0003315,3]
[310297321,1704463958228,-547.36,0.0003315,3]
[310297322,1704463958238,-1087.44,0.0003315,3]
[310297323,1704463958247,-500.0,0.0003315,3]
[310297324,1704463958258,-908.56,0.0003315,3]
[310297325,1704463958268,-500.0,0.0003315,3]
[310297326,1704463958278,-500.0,0.0003315,3]
[310297327,1704463958289,-5038.11,0.0003315,3]
[310297328,1704463958298,-884.22,0.0003315,3]
[310297329,1704463958308,-880.69,0.0003315,3]
[310297330,1704463958319,-500.0,0.0003315,3]
[310297331,1704463958329,-828.3,0.0003315,3]
[310297332,1704463958340,-500.0,0.0003315,3]
[310297333,1704463958350,-1954.72,0.0003315,3]
[310297334,1704463958360,-500.0,0.0003315,3]
[310297335,1704463958370,-500.0,0.0003315,3]
[310297336,1704463958380,-500.0,0.0003315,3]
[310297337,1704463958389,-964.87,0.0003315,3]
[310297338,1704463958398,-500.0,0.0003315,3]
[310297339,1704463958408,-1145.56,0.0003315,3]
[310297340,1704463958418,-1200.04,0.0003315,3]
[310297341,1704463958428,-794.58,0.0003315,3]
[310297342,1704463958438,-855.41,0.0003315,3]
[310297343,1704463958448,-534.82,0.0003315,3]
[310297344,1704463958458,-773.85,0.0003315,3]
[310297345,1704463958468,-1238.16,0.0003315,3]
[310297346,1704463958480,-500.0,0.0003315,3]
[310297347,1704463958746,-500.0,0.0003315,3]
[310297348,1704463958756,-3690.73,0.0003315,3]
[310297349,1704463958766,-500.0,0.0003315,3]
[310297350,1704463958775,-692.03,0.0003315,3]
[310297351,1704463958784,-559.53,0.0003315,3]
[310297352,1704463958794,-500.0,0.0003315,3]
[310297353,1704463958803,-500.0,0.0003315,3]
[310297354,1704463958813,-500.0,0.0003315,3]
[310297355,1704463958822,-500.0,0.0003315,3]
[310297356,1704463958833,-654.46,0.0003315,3]
[310297357,1704463958842,-954.52,0.0003315,3]
[310297358,1704463958852,-763.63,0.0003315,3]
[310297359,1704463958862,-1216.82,0.0003315,3]
[310297360,1704463958871,-876.69,0.0003315,3]
[310297361,1704463958881,-511.23,0.0003315,3]
[310297362,1704463958892,-500.0,0.0003315,3]
[310297363,1704463958901,-1777.29,0.0003315,3]
[310297364,1704463958911,-597.3,0.0003315,3]
[310297365,1704463958920,-813.3,0.0003315,3]
[310297366,1704463958930,-1082.13,0.0003315,3]
[310297367,1704463958939,-677.81,0.0003315,3]
[310297368,1704463958950,-1325.23,0.0003315,3]
[310297369,1704463958960,-500.0,0.0003315,3]
[310297370,1704463958970,-3298.71,0.0003315,3]
[310297371,1704463958980,-500.0,0.0003315,3]
[310297372,1704463958989,-798.97,0.0003315,3]
[310297373,1704463958999,-500.0,0.0003315,3]
[310297374,1704463959008,-500.0,0.0003315,3]
[310297375,1704463959018,-900.8,0.0003315,3]
[310297376,1704463959028,-500.0,0.0003315,3]
[310297377,1704463959039,-1067.2,0.0003315,3]
[310297378,1704463959048,-2016.59,0.0003315,3]
[310297379,1704463959058,-500.0,0.0003315,3]
[310297380,1704463959067,-752.23,0.0003315,3]
[310297381,1704463959077,-1251.67,0.0003315,3]
[310297382,1704463959089,-811.52,0.0003315,3]
[310297383,1704463959099,-500.0,0.0003315,3]
[310297384,1704463959109,-8654.29,0.0003315,3]
[310297385,1704463959118,-909.25,0.0003315,3]
[310297386,1704463959129,-952.02,0.0003315,3]
[310297387,1704463959138,-963.43,0.0003315,3]
[310297388,1704463959148,-500.0,0.0003315,3]
[310297389,1704463959157,-2290.16,0.0003315,3]
[310297390,1704463959167,-500.0,0.0003315,3]
[310297391,1704463959177,-511.88,0.0003315,3]
[310297392,1704463959187,-1293.97,0.0003315,3]
[310297393,1704463959196,-5023.74,0.0003315,3]
[310297394,1704463959206,-960.97,0.0003315,3]
[310297395,1704463959216,-1316.73,0.0003315,3]
[310297396,1704463959226,-500.0,0.0003315,3]
[310297397,1704463959236,-2888.44,0.0003315,3]
[310297398,1704463959246,-780.49,0.0003315,3]
[310297399,1704463959256,-213.57,0.0003315,3]
[310297400,1704463959268,-873.53,0.0003315,3]
[310297401,1704463959279,-840.85,0.0003315,3]
[310297402,1704463959290,-500.0,0.0003315,3]
[310297403,1704463959300,-552.42,0.0003315,3]
[310297404,1704463959310,-17362.55,0.0003315,3]
[310297405,1704463959321,-2346.84,0.0003315,3]
[310297406,1704463959333,-4809.34,0.0003315,3]
[310297407,1704463959343,-607.5,0.0003315,3]
[310297408,1704463959354,-619.58,0.0003315,3]
[310297409,1704463959363,-539.06,0.0003315,3]
[310297410,1704463959374,-500.0,0.0003315,3]
[310297411,1704463959383,-500.0,0.0003315,3]
[310297412,1704463959393,-500.0,0.0003315,3]
[310297413,1704463959403,-9463.24,0.0003315,3]
[310297414,1704463959412,-283.2022012,0.0003315,3]
[310297415,1704463959422,-4907.15,0.0003315,3]
[310297416,1704463959432,-4324.26,0.0003315,3]
[310297417,1704463959442,-2724.92,0.0003315,3]
[310297418,1704463959451,-11882.1,0.0003315,3]
[310297419,1704463959461,-746.12,0.0003315,3]
[310297420,1704463959470,-845.63,0.0003315,3]
[310297421,1704463959481,-500.0,0.0003315,3]
[310297422,1704463959492,-500.0,0.0003315,3]
[310297423,1704463959503,-3292.08,0.0003315,3]
[310297424,1704463959512,-500.0,0.0003315,3]
[310297425,1704463959523,-918.77,0.0003315,3]
[310297426,1704463959532,-644.83,0.0003315,3]
[310297427,1704463959542,-500.0,0.0003315,3]
[310297428,1704463959553,-1395.08,0.0003315,3]
[310297429,1704463959563,-500.0,0.0003315,3]
[310297430,1704463959573,-3344.35,0.0003315,3]
[310297431,1704463959584,-613.87,0.0003315,3]
[310297432,1704463959594,-500.0,0.0003315,3]
[310297433,1704463959604,-1259.17,0.0003315,3]
[310297434,1704463959613,-2954.54,0.0003315,3]
[310297435,1704463959623,-2366.41,0.0003315,3]
[310297436,1704463959633,-737.12,0.0003315,3]
[310297437,1704463959642,-500.0,0.0003315,3]
[310297438,1704463959653,-500.0,0.0003315,3]
[310297439,1704463959665,-5440.99,0.0003315,3]
[310297440,1704463959674,-3361.08,0.0003315,3]
[310297441,1704463959684,-1558.45,0.0003315,3]
[310297442,1704463959695,-500.0,0.0003315,3]
[310297443,1704463959704,-1062.83,0.0003315,3]
[310297444,1704463959714,-812.59,0.0003315,3]
[310297445,1704463959723,-646.75,0.0003315,3]
[310297446,1704463959732,-629.33200618,0.0003315,3]
[310297447,1704463959741,-1323.29,0.0003315,3]
[310297448,1704463959751,-500.0,0.0003315,3]
[310297449,1704463959761,-16516.01,0.0003315,3]
[310297450,1704463959771,-747.13,0.0003315,3]
[310297451,1704463959781,-8220.31,0.0003315,3]
[310297452,1704463959790,-500.0,0.0003315,3]
[310297453,1704463959800,-1218.24,0.0003315,3]
[310297454,1704463959809,-251.42363517,0.0003315,3]
[310297455,1704463959819,-678.9,0.0003315,3]